[Event "Titled Tuesday Blitz April 18 Late 2023"]
[White "Caruana, Fabiano"]
[Black "Nakamura, Hikaru"]
[WhiteFideId "2020009"]
[BlackFideId "2016192"]
[WhiteElo "2837"]
[BlackElo "2885"]
[Result "1-0"]
[Round "07"]
[TimeControl "180+2"]
[Date "2023.04.18"]
[WhiteClock "0:00:07"]
[BlackClock "0:00:05"]

1. d4 {[%clk 0:03:00]}  Nf6 {[%clk 0:02:59]} 2. c4 {[%clk 0:03:01]}  e6 {[%clk 0:03:00]} 3. Nf3 {[%clk 0:03:01]}  Bb4+ {[%clk 0:03:00]} 4. Bd2 {[%clk 0:03:00]}  c5 {[%clk 0:03:00]} 5. Bxb4 {[%clk 0:02:58]}  cxb4 {[%clk 0:03:01]} 6. g3 {[%clk 0:02:58]}  b6 {[%clk 0:03:02]} 7. Bg2 {[%clk 0:02:58]}  Bb7 {[%clk 0:03:02]} 8. O-O {[%clk 0:02:59]}  a5 {[%clk 0:03:02]} 9. a3 {[%clk 0:02:59]}  Na6 {[%clk 0:03:02]} 10. Nbd2 {[%clk 0:02:58]}  O-O {[%clk 0:03:02]} 11. Re1 {[%clk 0:02:57]}  d6 {[%clk 0:03:01]} 12. e4 {[%clk 0:02:57]}  Qc7 {[%clk 0:03:01]} 13. Qb3 {[%clk 0:02:54]}  e5 {[%clk 0:03:01]} 14. h3 {[%clk 0:02:49]}  Rfe8 {[%clk 0:03:01]} 15. Qe3 {[%clk 0:02:47]}  g6 {[%clk 0:02:55]} 16. Qh6 {[%clk 0:02:41]}  Qe7 {[%clk 0:02:53]} 17. Rad1 {[%clk 0:02:33]}  Rac8 {[%clk 0:02:51]} 18. Qe3 {[%clk 0:02:22]}  Nd7 {[%clk 0:02:51]} 19. h4 {[%clk 0:02:20]}  exd4 {[%clk 0:02:45]} 20. Nxd4 {[%clk 0:02:20]}  Ndc5 {[%clk 0:02:46]} 21. Nb5 {[%clk 0:02:14]}  Rcd8 {[%clk 0:02:44]} 22. Qd4 {[%clk 0:01:58]}  Bc6 {[%clk 0:02:29]} 23. Nf1 {[%clk 0:01:51]}  bxa3 {[%clk 0:02:24]} 24. bxa3 {[%clk 0:01:50]}  Bxb5 {[%clk 0:02:17]} 25. cxb5 {[%clk 0:01:51]}  Nc7 {[%clk 0:02:18]} 26. Qc4 {[%clk 0:01:48]}  d5 {[%clk 0:02:12]} 27. exd5 {[%clk 0:01:40]}  Qxe1 {[%clk 0:02:12]} 28. Rxe1 {[%clk 0:01:41]}  Rxe1 {[%clk 0:02:13]} 29. Kh2 {[%clk 0:01:36]}  Re7 {[%clk 0:02:06]} 30. Ne3 {[%clk 0:01:35]}  Ne8 {[%clk 0:02:07]} 31. Qd4 {[%clk 0:01:25]}  f5 {[%clk 0:00:45]} 32. Nc4 {[%clk 0:01:21]}  Ne4 {[%clk 0:00:41]} 33. Nxb6 {[%clk 0:01:04]}  N8d6 {[%clk 0:00:39]} 34. a4 {[%clk 0:00:59]}  Kf7 {[%clk 0:00:34]} 35. Nc4 {[%clk 0:00:54]}  Nxc4 {[%clk 0:00:30]} 36. Qxc4 {[%clk 0:00:55]}  Nd6 {[%clk 0:00:30]} 37. Qc3 {[%clk 0:00:53]}  Ra7 {[%clk 0:00:26]} 38. b6 {[%clk 0:00:45]}  Rb7 {[%clk 0:00:27]} 39. Qxa5 {[%clk 0:00:45]}  Nc8 {[%clk 0:00:21]} 40. Qc5 {[%clk 0:00:35]}  Rxb6 {[%clk 0:00:20]} 41. Qc7+ {[%clk 0:00:33]}  Ke8 {[%clk 0:00:21]} 42. a5 {[%clk 0:00:30]}  Rbd6 {[%clk 0:00:21]} 43. Qxh7 {[%clk 0:00:29]}  Ne7 {[%clk 0:00:20]} 44. Bf1 {[%clk 0:00:27]}  Rxd5 {[%clk 0:00:18]} 45. Bc4 {[%clk 0:00:27]}  Re5 {[%clk 0:00:14]} 46. Qf7+ {[%clk 0:00:23]}  Kd7 {[%clk 0:00:15]} 47. Qf6 {[%clk 0:00:22]}  Nc6 {[%clk 0:00:11]} 48. a6 {[%clk 0:00:19]}  Kc7 {[%clk 0:00:11]} 49. Qxg6 {[%clk 0:00:16]}  Re7 {[%clk 0:00:05]} 50. Qg5 {[%clk 0:00:11]}  Re5 {[%clk 0:00:02]} 51. Kg2 {[%clk 0:00:10]}  Kb6 {[%clk 0:00:02]} 52. Qg7 {[%clk 0:00:06]}  Re7 {[%clk 0:00:02]} 53. Qb2+ {[%clk 0:00:05]}  Ka7 {[%clk 0:00:02]} 54. Qb5 {[%clk 0:00:05]}  Rc7 {[%clk 0:00:02]} 55. Qc5+ {[%clk 0:00:06]}  Kb8 {[%clk 0:00:03]} 56. Qb6+ {[%clk 0:00:06]}  Kc8 {[%clk 0:00:03]} 57. Be6+ {[%clk 0:00:06]}  Rdd7 {[%clk 0:00:04]} 58. Bxd7+ {[%clk 0:00:06]}  Kxd7 {[%clk 0:00:05]} 59. Qb5 {[%clk 0:00:07]}  Kd6 {[%clk 0:00:05]} 60. Qxf5 {[%clk 0:00:07]}  Nb4 {[%clk 0:00:05]} 61. Qf4+ {[%clk 0:00:07]} 1-0


[Site "https://www.chess.com"]

[Event "Titled Tuesday Blitz April 18 Late 2023"]
[White "Yoo, Christopher Woojin"]
[Black "Martinez Alcantara, Jose Eduardo"]
[WhiteFideId "30909694"]
[BlackFideId "3805662"]
[WhiteElo "2519"]
[BlackElo "2711"]
[Result "1-0"]
[Round "07"]
[TimeControl "180+2"]
[Date "2023.04.18"]
[WhiteClock "0:00:02"]
[BlackClock "0:00:02"]

1. e4 {[%clk 0:03:00]}  c5 {[%clk 0:02:59]} 2. Nf3 {[%clk 0:03:01]}  d6 {[%clk 0:03:00]} 3. d4 {[%clk 0:03:01]}  cxd4 {[%clk 0:03:00]} 4. Nxd4 {[%clk 0:03:02]}  a6 {[%clk 0:03:00]} 5. Nc3 {[%clk 0:03:00]}  e6 {[%clk 0:03:00]} 6. g4 {[%clk 0:02:58]}  Nf6 {[%clk 0:02:58]} 7. g5 {[%clk 0:02:58]}  Nfd7 {[%clk 0:02:59]} 8. h4 {[%clk 0:02:58]}  b5 {[%clk 0:02:59]} 9. Bg2 {[%clk 0:02:57]}  Bb7 {[%clk 0:02:59]} 10. Be3 {[%clk 0:02:51]}  b4 {[%clk 0:02:56]} 11. Nce2 {[%clk 0:02:47]}  Nc5 {[%clk 0:02:55]} 12. Ng3 {[%clk 0:02:46]}  d5 {[%clk 0:02:37]} 13. exd5 {[%clk 0:02:38]}  Bxd5 {[%clk 0:02:32]} 14. Bxd5 {[%clk 0:02:37]}  Qxd5 {[%clk 0:02:33]} 15. Qf3 {[%clk 0:02:34]}  Qxf3 {[%clk 0:02:26]} 16. Nxf3 {[%clk 0:02:35]}  Nbd7 {[%clk 0:02:25]} 17. O-O-O {[%clk 0:02:34]}  Be7 {[%clk 0:02:25]} 18. Rd4 {[%clk 0:01:51]}  Rc8 {[%clk 0:02:19]} 19. Kb1 {[%clk 0:01:45]}  a5 {[%clk 0:02:19]} 20. Ne4 {[%clk 0:01:17]}  Nxe4 {[%clk 0:02:14]} 21. Rxe4 {[%clk 0:01:18]}  Bc5 {[%clk 0:02:15]} 22. Rd1 {[%clk 0:01:15]}  Bxe3 {[%clk 0:02:03]} 23. Rxe3 {[%clk 0:01:16]}  Ke7 {[%clk 0:01:54]} 24. Nd4 {[%clk 0:01:15]}  Rc5 {[%clk 0:01:45]} 25. Nb3 {[%clk 0:01:09]}  Rb5 {[%clk 0:01:34]} 26. Nd4 {[%clk 0:01:04]}  Rc5 {[%clk 0:01:27]} 27. Nb3 {[%clk 0:00:49]}  Rb5 {[%clk 0:01:07]} 28. c4 {[%clk 0:00:37]}  bxc3 {[%clk 0:01:01]} 29. Rxc3 {[%clk 0:00:37]}  Rd8 {[%clk 0:00:40]} 30. a4 {[%clk 0:00:24]}  Rd5 {[%clk 0:00:17]} 31. Rxd5 {[%clk 0:00:23]}  exd5 {[%clk 0:00:18]} 32. Nxa5 {[%clk 0:00:24]}  Ra8 {[%clk 0:00:19]} 33. b4 {[%clk 0:00:22]}  Nb6 {[%clk 0:00:18]} 34. Ra3 {[%clk 0:00:18]}  Kd7 {[%clk 0:00:15]} 35. Kc2 {[%clk 0:00:17]}  Re8 {[%clk 0:00:15]} 36. Kd3 {[%clk 0:00:14]}  Re4 {[%clk 0:00:16]} 37. Kc3 {[%clk 0:00:05]}  Rxh4 {[%clk 0:00:14]} 38. Nb3 {[%clk 0:00:05]}  Rc4+ {[%clk 0:00:12]} 39. Kd3 {[%clk 0:00:03]}  Rxb4 {[%clk 0:00:12]} 40. a5 {[%clk 0:00:02]}  Nc4 {[%clk 0:00:13]} 41. a6 {[%clk 0:00:02]}  Nxa3 {[%clk 0:00:06]} 42. Nc5+ {[%clk 0:00:03]}  Kc7 {[%clk 0:00:02]} 43. a7 {[%clk 0:00:04]}  Ra4 {[%clk 0:00:03]} 44. Nxa4 {[%clk 0:00:03]}  Kb7 {[%clk 0:00:03]} 45. Nb6 {[%clk 0:00:02]}  Kxa7 {[%clk 0:00:04]} 46. Nxd5 {[%clk 0:00:03]}  Nb5 {[%clk 0:00:04]} 47. Kc4 {[%clk 0:00:03]}  Nd6+ {[%clk 0:00:04]} 48. Kd4 {[%clk 0:00:03]}  Kb7 {[%clk 0:00:04]} 49. Ne3 {[%clk 0:00:02]}  Kc6 {[%clk 0:00:04]} 50. Ke5 {[%clk 0:00:02]}  Kd7 {[%clk 0:00:04]} 51. f4 {[%clk 0:00:03]}  Nc8 {[%clk 0:00:03]} 52. Nf5 {[%clk 0:00:03]}  g6 {[%clk 0:00:03]} 53. Nh6 {[%clk 0:00:03]}  Ke8 {[%clk 0:00:02]} 54. Kf6 {[%clk 0:00:03]}  Nd6 {[%clk 0:00:02]} 55. Kg7 {[%clk 0:00:04]}  Ke7 {[%clk 0:00:03]} 56. Kxh7 {[%clk 0:00:04]}  Ke6 {[%clk 0:00:02]} 57. Kg7 {[%clk 0:00:05]}  Ke7 {[%clk 0:00:02]} 58. Ng8+ {[%clk 0:00:04]}  Ke6 {[%clk 0:00:03]} 59. Nh6 {[%clk 0:00:05]}  Ke7 {[%clk 0:00:03]} 60. Kg8 {[%clk 0:00:06]}  Ke6 {[%clk 0:00:03]} 61. Kf8 {[%clk 0:00:06]}  Nc4 {[%clk 0:00:01]} 62. Nxf7 {[%clk 0:00:03]}  Kf5 {[%clk 0:00:02]} 63. Kg7 {[%clk 0:00:03]}  Kxf4 {[%clk 0:00:02]} 64. Kxg6 {[%clk 0:00:04]}  Ke4 {[%clk 0:00:01]} 65. Kf6 {[%clk 0:00:04]}  Ne3 {[%clk 0:00:01]} 66. g6 {[%clk 0:00:03]}  Nd5+ {[%clk 0:00:02]} 67. Kg5 {[%clk 0:00:04]}  Ne7 {[%clk 0:00:02]} 68. g7 {[%clk 0:00:05]}  Kd5 {[%clk 0:00:02]} 69. Nd8 {[%clk 0:00:02]}  Kd6 {[%clk 0:00:02]} 70. Kf6 {[%clk 0:00:03]}  Kd7 {[%clk 0:00:02]} 71. Ne6 {[%clk 0:00:02]}  Ng8+ {[%clk 0:00:03]} 72. Kf7 {[%clk 0:00:02]}  Nh6+ {[%clk 0:00:03]} 73. Kg6 {[%clk 0:00:03]}  Ng8 {[%clk 0:00:04]} 74. Nd4 {[%clk 0:00:02]}  Ke8 {[%clk 0:00:02]} 75. Nf5 {[%clk 0:00:02]}  Kd7 {[%clk 0:00:02]} 76. Kf7 {[%clk 0:00:02]} 1-0


[Site "https://www.chess.com"]

[Event "Titled Tuesday Blitz April 18 Late 2023"]
[White "Carlsen, Magnus"]
[Black "Hakobyan, Aram"]
[WhiteFideId "1503014"]
[BlackFideId "13306677"]
[WhiteElo "2852"]
[BlackElo "2584"]
[Result "1-0"]
[Round "07"]
[TimeControl "180+2"]
[Date "2023.04.18"]
[WhiteClock "0:01:25"]
[BlackClock "0:00:03"]

1. c4 {[%clk 0:03:00]}  g6 {[%clk 0:02:59]} 2. e4 {[%clk 0:02:59]}  e5 {[%clk 0:02:55]} 3. Nc3 {[%clk 0:02:59]}  Nc6 {[%clk 0:02:55]} 4. g3 {[%clk 0:02:59]}  Bg7 {[%clk 0:02:56]} 5. Bg2 {[%clk 0:02:59]}  d6 {[%clk 0:02:57]} 6. d3 {[%clk 0:02:58]}  Nge7 {[%clk 0:02:57]} 7. Nge2 {[%clk 0:02:58]}  O-O {[%clk 0:02:56]} 8. O-O {[%clk 0:02:58]}  f5 {[%clk 0:02:49]} 9. Be3 {[%clk 0:02:58]}  Be6 {[%clk 0:02:46]} 10. Nd5 {[%clk 0:02:58]}  Qd7 {[%clk 0:02:44]} 11. Qd2 {[%clk 0:02:55]}  Rf7 {[%clk 0:02:43]} 12. f3 {[%clk 0:02:54]}  Raf8 {[%clk 0:02:37]} 13. Rac1 {[%clk 0:02:54]}  b6 {[%clk 0:02:00]} 14. b4 {[%clk 0:02:53]}  a5 {[%clk 0:01:56]} 15. b5 {[%clk 0:02:49]}  Nd8 {[%clk 0:01:48]} 16. Bg5 {[%clk 0:02:47]}  Bxd5 {[%clk 0:01:46]} 17. cxd5 {[%clk 0:02:46]}  Nb7 {[%clk 0:01:45]} 18. Bh3 {[%clk 0:02:28]}  h6 {[%clk 0:01:28]} 19. Be3 {[%clk 0:02:20]}  Qd8 {[%clk 0:01:11]} 20. d4 {[%clk 0:02:14]}  g5 {[%clk 0:01:06]} 21. Qc2 {[%clk 0:01:59]}  g4 {[%clk 0:00:37]} 22. fxg4 {[%clk 0:01:59]}  fxe4 {[%clk 0:00:38]} 23. Rxf7 {[%clk 0:01:51]}  Rxf7 {[%clk 0:00:38]} 24. g5 {[%clk 0:01:52]}  Nxd5 {[%clk 0:00:34]} 25. g6 {[%clk 0:01:49]}  Rf3 {[%clk 0:00:17]} 26. Qxe4 {[%clk 0:01:29]}  Rxe3 {[%clk 0:00:18]} 27. Qxd5+ {[%clk 0:01:29]}  Kh8 {[%clk 0:00:18]} 28. Qxb7 {[%clk 0:01:28]}  Rxe2 {[%clk 0:00:18]} 29. Rxc7 {[%clk 0:01:28]}  Qg8 {[%clk 0:00:06]} 30. Rc8 {[%clk 0:01:27]}  Bf8 {[%clk 0:00:06]} 31. Rxf8 {[%clk 0:01:27]}  Re1+ {[%clk 0:00:05]} 32. Bf1 {[%clk 0:01:24]}  Rxf1+ {[%clk 0:00:03]} 33. Rxf1 {[%clk 0:01:25]} 1-0


[Site "https://www.chess.com"]

[Event "Titled Tuesday Blitz April 18 Late 2023"]
[White "Suleymanli, Aydin"]
[Black "Duda, Jan-Krzysztof"]
[WhiteFideId "13413937"]
[BlackFideId "1170546"]
[WhiteElo "2559"]
[BlackElo "2790"]
[Result "1-0"]
[Round "07"]
[TimeControl "180+2"]
[Date "2023.04.18"]
[WhiteClock "0:00:05"]
[BlackClock "0:00:01"]

1. e4 {[%clk 0:03:00]}  e6 {[%clk 0:02:58]} 2. d4 {[%clk 0:02:59]}  d5 {[%clk 0:02:59]} 3. Nd2 {[%clk 0:03:00]}  c5 {[%clk 0:02:54]} 4. Ngf3 {[%clk 0:03:00]}  cxd4 {[%clk 0:02:54]} 5. exd5 {[%clk 0:03:00]}  Qxd5 {[%clk 0:02:51]} 6. Bc4 {[%clk 0:03:00]}  Qd6 {[%clk 0:02:50]} 7. O-O {[%clk 0:02:58]}  Nc6 {[%clk 0:02:50]} 8. Nb3 {[%clk 0:02:59]}  Nf6 {[%clk 0:02:47]} 9. Re1 {[%clk 0:02:57]}  Be7 {[%clk 0:02:42]} 10. Nbxd4 {[%clk 0:02:57]}  Nxd4 {[%clk 0:02:41]} 11. Nxd4 {[%clk 0:02:57]}  O-O {[%clk 0:02:40]} 12. c3 {[%clk 0:02:57]}  Qc7 {[%clk 0:02:30]} 13. Qe2 {[%clk 0:02:44]}  b6 {[%clk 0:02:26]} 14. Bg5 {[%clk 0:02:35]}  Kh8 {[%clk 0:02:12]} 15. Bh4 {[%clk 0:02:29]}  Bb7 {[%clk 0:02:07]} 16. Rad1 {[%clk 0:02:20]}  Rad8 {[%clk 0:01:48]} 17. f3 {[%clk 0:01:47]}  Nh5 {[%clk 0:01:23]} 18. Bxe7 {[%clk 0:01:32]}  Qxe7 {[%clk 0:01:24]} 19. Qe5 {[%clk 0:01:32]}  Nf6 {[%clk 0:01:06]} 20. Nf5 {[%clk 0:01:24]}  Qc5+ {[%clk 0:01:00]} 21. Qxc5 {[%clk 0:01:24]}  bxc5 {[%clk 0:01:00]} 22. Nd6 {[%clk 0:01:20]}  Bd5 {[%clk 0:01:00]} 23. Bxd5 {[%clk 0:01:20]}  exd5 {[%clk 0:00:52]} 24. Nb7 {[%clk 0:01:18]}  Rb8 {[%clk 0:00:35]} 25. Re7 {[%clk 0:01:17]}  c4 {[%clk 0:00:32]} 26. g4 {[%clk 0:00:59]}  h6 {[%clk 0:00:32]} 27. h4 {[%clk 0:00:59]}  Rfe8 {[%clk 0:00:23]} 28. Rxf7 {[%clk 0:00:49]}  Kg8 {[%clk 0:00:20]} 29. Rc7 {[%clk 0:00:47]}  Re2 {[%clk 0:00:20]} 30. g5 {[%clk 0:00:36]}  hxg5 {[%clk 0:00:17]} 31. hxg5 {[%clk 0:00:36]}  Rxb2 {[%clk 0:00:12]} 32. gxf6 {[%clk 0:00:20]}  R2xb7 {[%clk 0:00:10]} 33. Rxg7+ {[%clk 0:00:16]}  Rxg7+ {[%clk 0:00:10]} 34. fxg7 {[%clk 0:00:17]}  Rb5 {[%clk 0:00:10]} 35. Kf2 {[%clk 0:00:15]}  Kxg7 {[%clk 0:00:10]} 36. Ke3 {[%clk 0:00:16]}  Ra5 {[%clk 0:00:07]} 37. Kd4 {[%clk 0:00:15]}  Kf6 {[%clk 0:00:07]} 38. Rd2 {[%clk 0:00:14]}  Kf5 {[%clk 0:00:06]} 39. Re2 {[%clk 0:00:07]}  Kf4 {[%clk 0:00:06]} 40. Re5 {[%clk 0:00:07]}  Rxa2 {[%clk 0:00:05]} 41. Rxd5 {[%clk 0:00:08]}  Ra4 {[%clk 0:00:02]} 42. Rd7 {[%clk 0:00:06]}  Kxf3 {[%clk 0:00:02]} 43. Re7 {[%clk 0:00:06]}  a5 {[%clk 0:00:02]} 44. Kc5 {[%clk 0:00:07]}  Kf4 {[%clk 0:00:01]} 45. Kb5 {[%clk 0:00:07]}  Ra1 {[%clk 0:00:01]} 46. Kxc4 {[%clk 0:00:07]}  a4 {[%clk 0:00:01]} 47. Kb4 {[%clk 0:00:07]}  a3 {[%clk 0:00:01]} 48. Kb3 {[%clk 0:00:05]} 1-0


[Site "https://www.chess.com"]

[Event "Titled Tuesday Blitz April 18 Late 2023"]
[White "Bluebaum, Matthias"]
[Black "Rustemov, Alexander"]
[WhiteFideId "24651516"]
[BlackFideId "4119002"]
[WhiteElo "2638"]
[BlackElo "2867"]
[Result "1-0"]
[Round "07"]
[TimeControl "180+2"]
[Date "2023.04.18"]
[WhiteClock "0:02:43"]
[BlackClock "0:01:43"]

1. d4 {[%clk 0:03:00]}  d5 {[%clk 0:02:54]} 2. c4 {[%clk 0:03:01]}  c6 {[%clk 0:02:55]} 3. Nf3 {[%clk 0:03:01]}  Nf6 {[%clk 0:02:55]} 4. Nc3 {[%clk 0:03:02]}  a6 {[%clk 0:02:56]} 5. Qc2 {[%clk 0:03:03]}  e6 {[%clk 0:02:53]} 6. e4 {[%clk 0:03:00]}  dxe4 {[%clk 0:02:51]} 7. Nxe4 {[%clk 0:03:01]}  Nbd7 {[%clk 0:02:46]} 8. Bd3 {[%clk 0:03:00]}  Be7 {[%clk 0:02:45]} 9. O-O {[%clk 0:02:59]}  O-O {[%clk 0:02:45]} 10. b3 {[%clk 0:02:59]}  b6 {[%clk 0:02:45]} 11. Bf4 {[%clk 0:02:54]}  h6 {[%clk 0:02:31]} 12. Nd6 {[%clk 0:02:42]}  Qc7 {[%clk 0:02:18]} 13. c5 {[%clk 0:02:41]}  Nd5 {[%clk 0:02:11]} 14. Bh7+ {[%clk 0:02:41]}  Kh8 {[%clk 0:02:08]} 15. Nxf7+ {[%clk 0:02:42]}  Rxf7 {[%clk 0:02:06]} 16. Bxc7 {[%clk 0:02:42]}  Nxc7 {[%clk 0:02:06]} 17. cxb6 {[%clk 0:02:43]}  Nxb6 {[%clk 0:02:00]} 18. Ne5 {[%clk 0:02:42]}  Rf6 {[%clk 0:01:53]} 19. Ng6+ {[%clk 0:02:43]}  Kxh7 {[%clk 0:01:46]} 20. Nxe7+ {[%clk 0:02:43]}  Kh8 {[%clk 0:01:47]} 21. Qxc6 {[%clk 0:02:43]}  Nbd5 {[%clk 0:01:43]} 22. Nxd5 {[%clk 0:02:43]} 1-0


[Site "https://www.chess.com"]

[Event "Titled Tuesday Blitz April 18 Late 2023"]
[White "Bortnyk, Olexandr"]
[Black "Djordjevic, Vuk"]
[WhiteFideId "14120828"]
[BlackFideId "902098"]
[WhiteElo "2734"]
[BlackElo "2452"]
[Result "0-1"]
[Round "07"]
[TimeControl "180+2"]
[Date "2023.04.18"]
[WhiteClock "0:00:04"]
[BlackClock "0:00:03"]

1. d4 {[%clk 0:03:00]}  Nf6 {[%clk 0:02:59]} 2. Nc3 {[%clk 0:03:01]}  d5 {[%clk 0:02:59]} 3. Bf4 {[%clk 0:03:01]}  a6 {[%clk 0:02:52]} 4. e3 {[%clk 0:03:01]}  e6 {[%clk 0:02:51]} 5. a3 {[%clk 0:03:00]}  c5 {[%clk 0:02:46]} 6. Nf3 {[%clk 0:03:01]}  Nc6 {[%clk 0:02:46]} 7. h3 {[%clk 0:03:01]}  Bd6 {[%clk 0:02:45]} 8. dxc5 {[%clk 0:03:02]}  Bxc5 {[%clk 0:02:42]} 9. Bd3 {[%clk 0:03:02]}  O-O {[%clk 0:02:30]} 10. O-O {[%clk 0:03:02]}  Qe7 {[%clk 0:02:23]} 11. e4 {[%clk 0:03:02]}  dxe4 {[%clk 0:02:05]} 12. Nxe4 {[%clk 0:03:03]}  Nxe4 {[%clk 0:02:04]} 13. Bxe4 {[%clk 0:03:04]}  e5 {[%clk 0:01:59]} 14. Re1 {[%clk 0:02:46]}  f6 {[%clk 0:01:50]} 15. Qd3 {[%clk 0:02:26]}  g6 {[%clk 0:01:25]} 16. Be3 {[%clk 0:02:18]}  Be6 {[%clk 0:01:17]} 17. Bxc6 {[%clk 0:02:15]}  bxc6 {[%clk 0:01:16]} 18. Qc3 {[%clk 0:01:55]}  Bxe3 {[%clk 0:01:14]} 19. Rxe3 {[%clk 0:01:56]}  Bd5 {[%clk 0:01:10]} 20. Rae1 {[%clk 0:01:57]}  Rfd8 {[%clk 0:01:03]} 21. Nh2 {[%clk 0:01:56]}  Qd6 {[%clk 0:00:59]} 22. Ng4 {[%clk 0:01:40]}  h5 {[%clk 0:00:48]} 23. Nh2 {[%clk 0:01:40]}  c5 {[%clk 0:00:40]} 24. Nf1 {[%clk 0:01:30]}  Qc6 {[%clk 0:00:34]} 25. Rg3 {[%clk 0:01:28]}  Kf7 {[%clk 0:00:34]} 26. Ne3 {[%clk 0:01:14]}  Be6 {[%clk 0:00:31]} 27. Nf1 {[%clk 0:01:13]}  Rd4 {[%clk 0:00:30]} 28. Nd2 {[%clk 0:01:06]}  Rad8 {[%clk 0:00:26]} 29. Nf3 {[%clk 0:01:06]}  Rd1 {[%clk 0:00:21]} 30. Rxd1 {[%clk 0:01:06]}  Rxd1+ {[%clk 0:00:21]} 31. Kh2 {[%clk 0:01:07]}  e4 {[%clk 0:00:15]} 32. Ng1 {[%clk 0:00:45]}  Qd6 {[%clk 0:00:13]} 33. h4 {[%clk 0:00:39]}  g5 {[%clk 0:00:12]} 34. Kh1 {[%clk 0:00:33]}  gxh4 {[%clk 0:00:09]} 35. Re3 {[%clk 0:00:33]}  h3 {[%clk 0:00:07]} 36. gxh3 {[%clk 0:00:34]}  Qf4 {[%clk 0:00:06]} 37. Qxc5 {[%clk 0:00:18]}  Qxf2 {[%clk 0:00:05]} 38. Qc7+ {[%clk 0:00:15]}  Bd7 {[%clk 0:00:05]} 39. Qg3 {[%clk 0:00:04]}  Qxg3 {[%clk 0:00:05]} 40. Rxg3 {[%clk 0:00:05]}  f5 {[%clk 0:00:06]} 41. Kg2 {[%clk 0:00:04]}  f4 {[%clk 0:00:05]} 42. Rg5 {[%clk 0:00:05]}  Bc6 {[%clk 0:00:03]} 43. Kf2 {[%clk 0:00:02]}  e3+ {[%clk 0:00:02]} 44. Ke2 {[%clk 0:00:03]}  Rd2+ {[%clk 0:00:03]} 45. Ke1 {[%clk 0:00:04]}  Kf6 {[%clk 0:00:02]} 46. Rc5 {[%clk 0:00:03]}  Be4 {[%clk 0:00:02]} 47. Ne2 {[%clk 0:00:02]}  f3 {[%clk 0:00:02]} 48. Ng3 {[%clk 0:00:03]}  f2+ {[%clk 0:00:03]} 49. Kf1 {[%clk 0:00:04]}  Rd1+ {[%clk 0:00:03]} 50. Ke2 {[%clk 0:00:04]}  Re1# {[%clk 0:00:03]} 0-1


[Site "https://www.chess.com"]

[Event "Titled Tuesday Blitz April 18 Late 2023"]
[White "Kramnik, Vladimir"]
[Black "Manukyan, Sargis A."]
[WhiteFideId "4101588"]
[BlackFideId "13303970"]
[WhiteElo "2712"]
[BlackElo "2187"]
[Result "0-1"]
[Round "07"]
[TimeControl "180+2"]
[Date "2023.04.18"]
[WhiteClock "0:00:02"]
[BlackClock "0:00:56"]

1. c4 {[%clk 0:03:00]}  Nf6 {[%clk 0:02:54]} 2. Nc3 {[%clk 0:03:00]}  c5 {[%clk 0:02:50]} 3. g3 {[%clk 0:02:56]}  Nc6 {[%clk 0:02:51]} 4. Bg2 {[%clk 0:02:54]}  g6 {[%clk 0:02:51]} 5. e3 {[%clk 0:02:52]}  Bg7 {[%clk 0:02:52]} 6. Nge2 {[%clk 0:02:52]}  O-O {[%clk 0:02:52]} 7. O-O {[%clk 0:02:51]}  d6 {[%clk 0:02:52]} 8. b3 {[%clk 0:02:48]}  Rb8 {[%clk 0:02:51]} 9. Bb2 {[%clk 0:02:47]}  Bd7 {[%clk 0:02:52]} 10. d4 {[%clk 0:02:45]}  cxd4 {[%clk 0:02:49]} 11. exd4 {[%clk 0:02:44]}  a6 {[%clk 0:02:48]} 12. d5 {[%clk 0:02:39]}  Ne5 {[%clk 0:02:47]} 13. a4 {[%clk 0:02:26]}  b5 {[%clk 0:02:46]} 14. cxb5 {[%clk 0:02:24]}  axb5 {[%clk 0:02:47]} 15. axb5 {[%clk 0:02:20]}  Bxb5 {[%clk 0:02:47]} 16. Nxb5 {[%clk 0:02:19]}  Rxb5 {[%clk 0:02:46]} 17. Nd4 {[%clk 0:02:15]}  Rb7 {[%clk 0:02:43]} 18. Nc6 {[%clk 0:02:11]}  Qb6 {[%clk 0:02:41]} 19. Bxe5 {[%clk 0:01:51]}  dxe5 {[%clk 0:02:40]} 20. b4 {[%clk 0:01:51]}  e4 {[%clk 0:02:34]} 21. Rc1 {[%clk 0:01:39]}  Rc7 {[%clk 0:02:21]} 22. Re1 {[%clk 0:01:28]}  Bh6 {[%clk 0:02:07]} 23. Rc5 {[%clk 0:01:23]}  e6 {[%clk 0:02:00]} 24. Bxe4 {[%clk 0:01:20]}  exd5 {[%clk 0:01:54]} 25. Bxd5 {[%clk 0:01:19]}  Rd7 {[%clk 0:01:40]} 26. Ne7+ {[%clk 0:01:15]}  Kh8 {[%clk 0:01:26]} 27. Qb3 {[%clk 0:00:57]}  Re8 {[%clk 0:01:18]} 28. Rc6 {[%clk 0:00:55]}  Qd4 {[%clk 0:01:12]} 29. Rc4 {[%clk 0:00:34]}  Qd2 {[%clk 0:01:05]} 30. Rd1 {[%clk 0:00:30]}  Qe2 {[%clk 0:01:02]} 31. Qc2 {[%clk 0:00:10]}  Qxc2 {[%clk 0:01:00]} 32. Rxc2 {[%clk 0:00:10]}  Rexe7 {[%clk 0:01:00]} 33. Rc5 {[%clk 0:00:07]}  Nxd5 {[%clk 0:00:59]} 34. Rcxd5 {[%clk 0:00:07]}  Rxd5 {[%clk 0:01:00]} 35. Rxd5 {[%clk 0:00:07]}  Re1+ {[%clk 0:01:00]} 36. Kg2 {[%clk 0:00:07]}  Rb1 {[%clk 0:01:01]} 37. b5 {[%clk 0:00:07]}  Rb2 {[%clk 0:01:02]} 38. Kf3 {[%clk 0:00:07]}  Kg7 {[%clk 0:01:03]} 39. h4 {[%clk 0:00:06]}  Bd2 {[%clk 0:01:03]} 40. g4 {[%clk 0:00:05]}  Be1 {[%clk 0:01:03]} 41. h5 {[%clk 0:00:04]}  gxh5 {[%clk 0:01:02]} 42. gxh5 {[%clk 0:00:03]}  Bxf2 {[%clk 0:01:03]} 43. Kg4 {[%clk 0:00:04]}  h6 {[%clk 0:01:03]} 44. Kf5 {[%clk 0:00:03]}  Bg1 {[%clk 0:01:02]} 45. Ke4 {[%clk 0:00:03]}  Kf6 {[%clk 0:00:56]} 46. Kd3 {[%clk 0:00:03]}  Ke6 {[%clk 0:00:56]} 47. Kc4 {[%clk 0:00:02]}  Rc2+ {[%clk 0:00:56]} 0-1


[Site "https://www.chess.com"]